fUSD/lending_fUSD_20251006
["ID","MTS","AMOUNT","RATE_DAILY","PERIOD"]
[389661908,1759775440631,-151.0,0.000248,7]
[389661909,1759775440642,-151.0,0.000248,7]
[389661911,1759775440653,-151.0,0.000248,7]
[389661913,1759775440663,-151.0,0.000248,7]
[389661914,1759775440673,-151.0,0.000248,7]
[389661916,1759775440682,-151.0,0.000248,7]
[389661918,1759775440692,-151.0,0.000248,7]
[389661919,1759775440701,-151.0,0.000248,7]
[389661920,1759775440710,-151.0,0.000248,7]
[389661922,1759775440719,-151.0,0.000248,7]
[389661923,1759775440728,-151.0,0.000248,7]
[389661924,1759775440738,-151.0,0.000248,7]
[389661925,1759775440747,-151.0,0.000248,7]
[389661926,1759775440756,-1329.908405,0.000248,7]
[389661927,1759775440765,-151.0,0.000248,7]
[389661928,1759775440775,-200.926597,0.000248,7]
[389661929,1759775440784,-1329.908405,0.000248,7]
[389661930,1759775440793,-151.0,0.000248,7]
[389661931,1759775440803,-151.0,0.000248,7]
[389661932,1759775440812,-1329.908405,0.000248,7]
[389661933,1759775440822,-1329.908405,0.000248,7]
[389661934,1759775440831,-151.0,0.000248,7]
[389661935,1759775440841,-151.0,0.000248,7]
[389661936,1759775440852,-151.0,0.000248,7]
[389661937,1759775440863,-190.628336,0.000248,7]
[389661938,1759775440872,-176.514806,0.000248,7]
[389661939,1759775440881,-151.0,0.000248,7]
[389661940,1759775440890,-151.0,0.000248,7]
[389661941,1759775440899,-4473.59110957,0.000249,3]
[389661942,1759775440909,-791.6,0.000249,2]
[389661943,1759775440918,-1473.33,0.000249,7]
[389661944,1759775440927,-1036.67,0.00025,2]
[389661945,1759775440936,-410.97481048,0.00025,3]
[389661946,1759775440945,-229.01163612,0.00025214,2]
[389661947,1759775440954,-500.0,0.00025325,2]
[389661948,1759775440963,-500.0,0.00025325,2]
[389661949,1759775440975,-500.0,0.00025325,2]
[389661950,1759775440984,-8006.97634497,0.00025369,2]
[389661951,1759775440994,-1000.0,0.000254,2]
[389661952,1759775441003,-1036.67,0.000255,2]
[389661953,1759775441012,-354.15152644,0.00025526,2]
[389661954,1759775441021,-1000.0,0.00025873,2]
[389661955,1759775441029,-1003.82909024,0.00025873,2]
[389661956,1759775441038,-1000.0,0.00025873,2]
[389661957,1759775441048,-1036.67,0.00026,30]
[389661958,1759775441057,-161.67240369,0.00026463,2]
[389661959,1759775441066,-8006.97634497,0.00026463,2]
[389661960,1759775441076,-1036.67,0.000265,30]
[389661961,1759775441085,-151.304299,0.00026598,2]
[389661962,1759775441094,-229.01163612,0.00026724,2]
[389661963,1759775441103,-500.0,0.00026827,2]
[389661964,1759775441113,-150.0,0.00026852,4]
[389661965,1759775441122,-150.0,0.00026852,4]
[389661966,1759775441131,-150.0,0.00026852,4]
[389661967,1759775441140,-150.0,0.00026852,4]
[389661968,1759775441149,-150.96227898,0.00026852,4]
[389661969,1759775441159,-150.0,0.00026852,4]
[389661970,1759775441167,-150.0,0.00026852,4]
[389661971,1759775441177,-150.0,0.00026852,4]
[389661972,1759775441186,-150.0,0.00026852,4]
[389661973,1759775441452,-150.43571109,0.00026852,4]
[389661974,1759775441463,-150.0,0.00026852,4]
[389661975,1759775441473,-150.56210765,0.00026852,4]
[389661976,1759775441482,-150.0,0.00026852,4]
[389661977,1759775441491,-150.0,0.00026852,4]
[389661978,1759775441500,-150.0,0.00026852,4]
[389661979,1759775441510,-150.0,0.00026852,4]
[389661980,1759775441519,-354.15152644,0.00026932,2]
[389661981,1759775441528,-1036.67,0.00027,30]
[389661982,1759775441538,-791.6,0.00027,2]
[389661983,1759775441547,-1473.33,0.00027,7]
[389661984,1759775441558,-150.0,0.00027349,4]
[389661985,1759775441569,-150.0,0.00027349,4]
[389661986,1759775441579,-291.51388943,0.00027397,2]
[389661987,1759775441588,-261.818863,0.00027397,30]
[389661988,1759775441598,-150.0,0.00027458,2]
[389661989,1759775441608,-151.0,0.00027497,7]
[389661990,1759775441617,-1036.67,0.000275,30]
[389661991,1759775441627,-8006.97634497,0.00027557,2]
[389661992,1759775441640,-150.5,0.00027563,2]
[389661993,1759775441652,-35931.0031337,0.00027573,3]
[389661994,1759775441661,-254.48593997,0.00027583,2]
[389661995,1759775441670,-225.0,0.00027596,7]
[389661996,1759775441680,-225.0,0.00027702,2]
[389661997,1759775441689,-298.47116416,0.00027708,2]
[389661998,1759775441699,-710.0,0.00027771,7]
[389661999,1759775441709,-225.0,0.00027817,2]
[389662000,1759775441718,-342.45638836,0.00027833,2]
[389662001,1759775441727,-710.0,0.00027843,2]
[389662002,1759775441740,-150.0,0.00027847,7]
[389662003,1759775441754,-150.0,0.00027847,7]
[389662004,1759775441764,-150.0,0.00027847,7]
[389662005,1759775441773,-225.0,0.00027875,2]
[389662006,1759775441783,-225.0,0.00027906,2]
[389662007,1759775441792,-386.44161255,0.00027958,2]
[389662008,1759775441805,-1500.0,0.00027966,120]
[389662009,1759775441814,-225.0,0.00027967,2]
[389662010,1759775441824,-746.47,0.00027992,2]
[389662011,1759775441833,-8387.68586334,0.00028,60]
[389662012,1759775441843,-1036.67,0.00028,30]
[389662013,1759775441852,-225.0,0.00028059,2]
[389662014,1759775441861,-430.42683674,0.00028083,2]
[389662015,1759775441871,-474.41206094,0.00028208,2]
[389662016,1759775441880,-208.54,0.00028218,2]
[389662017,1759775441889,-229.01163612,0.00028235,2]
[389662018,1759775441898,-150.0,0.00028297,5]
[389662019,1759775441907,-710.0,0.00028309,2]
[389662020,1759775441917,-150.5,0.00028314,2]
[389662021,1759775441926,-544.98088023,0.00028324,2]
[389662022,1759775441935,-7965.41053268,0.00028324,2]
[389662023,1759775441944,-578.20924308,0.00028324,2]
[389662024,1759775441953,-1808.83961076,0.00028324,2]
[389662025,1759775441962,-151.0,0.00028324,2]
[389662026,1759775441971,-231.28369723,0.00028324,2]
[389662027,1759775441980,-322.6107,0.00028324,2]
[389662028,1759775441990,-518.39728513,0.00028334,2]
[389662029,1759775441999,-354.15152644,0.00028339,2]
[389662030,1759775442009,-150.0,0.00028344,7]
[389662031,1759775442018,-150.0,0.00028344,7]
[389662032,1759775442028,-225.0,0.00028365,2]
[389662033,1759775442037,-8260.13072239,0.00028379,2]
[389662034,1759775442047,-8565.75555911,0.00028434,2]
[389662035,1759775442056,-225.0,0.00028445,2]
[389662036,1759775442066,-323.15,0.00028458,2]
[389662037,1759775442074,-150.0,0.00028458,2]
[389662038,1759775442083,-167.94,0.00028458,2]
[389662039,1759775442092,-175.72,0.00028458,2]
[389662040,1759775442102,-2394.64,0.00028458,2]
[389662041,1759775442111,-545.7,0.00028458,2]
[389662042,1759775442120,-825.56,0.00028458,2]
[389662043,1759775442129,-562.38250932,0.00028459,2]
[389662044,1759775442139,-8882.6885148,0.00028489,2]
[389662045,1759775442148,-7321.2844,0.00028499,2]
[389662046,1759775442158,-791.6,0.000285,2]
[389662047,1759775442167,-1473.33,0.000285,7]
[389662048,1759775442177,-9211.34798985,0.00028544,2]
[389662049,1759775442186,-150.5,0.00028578,2]
[389662050,1759775442195,-606.36773351,0.00028584,2]
[389662051,1759775442204,-35931.0031337,0.00028589,3]
[389662052,1759775442213,-9552.16786547,0.00028599,2]
[389662053,1759775442222,-1000.0,0.00028608,2]
[389662054,1759775442231,-8006.97634497,0.00028651,2]
[389662055,1759775442240,-9905.5980765,0.00028654,2]
[389662056,1759775442252,-150.5,0.00028698,2]
[389662057,1759775442261,-10272.10520533,0.00028709,2]
[389662058,1759775442270,-650.35295771,0.00028709,2]
[389662059,1759775442279,-150.0,0.00028737,5]
[389662060,1759775442289,-10652.17309792,0.00028764,2]
[389662061,1759775442298,-225.0,0.00028803,2]
[389662062,1759775442307,-2123.9900042,0.00028811,2]
[389662063,1759775442316,-11046.30350255,0.00028819,2]
[389662064,1759775442326,-694.3381819,0.00028834,2]
[389662065,1759775442335,-5038.50908333,0.00028841,2]
[389662066,1759775442344,-150.0,0.00028841,7]
[389662067,1759775442353,-150.0,0.00028841,7]
[389662068,1759775442362,-150.0,0.00028841,7]
[389662069,1759775442371,-429.68,0.00028847,2]
[389662070,1759775442380,-150.5,0.00028854,2]
[389662071,1759775442390,-710.0,0.00028857,2]
[389662072,1759775442399,-35931.0031337,0.00028863,3]
[389662073,1759775442407,-11455.01673214,0.00028874,2]
[389662074,1759775442417,-526.56,0.00028876,2]
[389662075,1759775442426,-2264.64,0.00028876,30]
[389662076,1759775442435,-400.0,0.000289,10]
[389662077,1759775442444,-11878.85235123,0.00028929,2]
[389662078,1759775442453,-807.65,0.00028941,2]
[389662079,1759775442463,-738.32340609,0.00028959,2]
[389662080,1759775442472,-2123.9900042,0.00028967,2]
[389662081,1759775442482,-12318.36988823,0.00028984,2]
[389662082,1759775442491,-225.0,0.00028987,2]
[389662083,1759775442500,-225.0,0.00028988,2]
[389662084,1759775442509,-3600.0,0.00029,3]
[389662085,1759775442519,-900.0,0.00029,10]
[389662086,1759775442527,-544.63,0.00029014,2]
[389662087,1759775442536,-167.76,0.00029014,2]
[389662088,1759775442545,-412.91,0.00029014,2]
[389662089,1759775442559,-175.48,0.00029014,2]
[389662090,1759775442568,-412.39,0.00029014,2]
[389662091,1759775442577,-150.5,0.00029029,2]
[389662092,1759775442586,-11607.4668786,0.00029039,2]
[389662093,1759775442596,-1444.0,0.00029041,120]
[389662094,1759775442604,-1197.76,0.00029078,2]
[389662095,1759775442614,-175.72,0.00029078,2]
[389662096,1759775442623,-150.0,0.00029078,2]
[389662097,1759775442635,-412.91,0.00029078,2]
[389662098,1759775442643,-167.94,0.00029078,2]
[389662099,1759775442653,-1089.18,0.00029078,2]
[389662100,1759775442662,-175.72,0.00029078,2]
[389662101,1759775442671,-167.94,0.00029078,2]
[389662102,1759775442680,-412.91,0.00029078,2]
[389662103,1759775442690,-175.72,0.00029078,2]
[389662104,1759775442701,-782.30863028,0.00029084,2]
[389662105,1759775442710,-1400.0,0.000291,10]
[389662106,1759775442719,-2123.9900042,0.00029122,2]
[389662107,1759775442730,-225.0,0.00029125,2]
[389662108,1759775442740,-225.0,0.00029161,7]
[389662109,1759775442751,-225.0,0.00029169,2]
[389662110,1759775442760,-1900.0,0.000292,10]
[389662111,1759775442770,-826.29385448,0.0002921,2]
[389662112,1759775442780,-2123.9900042,0.00029278,2]
[389662113,1759775442789,-2400.0,0.000293,10]
[389662114,1759775442799,-367.06394998,0.00029315,7]
[389662115,1759775442808,-500.0,0.00029315,7]
[389662116,1759775442818,-475.11,0.00029315,7]
[389662117,1759775442827,-500.0,0.00029315,7]
[389662119,1759775442836,-500.0,0.00029315,7]
[389662120,1759775442846,-500.0,0.00029315,7]
[389662121,1759775442855,-1000.0,0.00029315,7]
[389662122,1759775442865,-500.0,0.00029315,7]
[389662123,1759775442874,-500.0,0.00029315,7]
[389662124,1759775442883,-311.32247575,0.00029315,7]
[389662125,1759775442895,-500.0,0.00029315,7]
[389662126,1759775442904,-500.0,0.00029315,7]
[389662127,1759775442913,-500.0,0.00029315,7]
[389662128,1759775442923,-500.0,0.00029315,7]
[389662129,1759775442931,-500.0,0.00029315,7]
[389662130,1759775442941,-500.0,0.00029315,7]
[389662131,1759775442951,-512.08,0.00029315,7]
[389662132,1759775442961,-500.0,0.00029315,7]
[389662133,1759775442970,-500.0,0.00029315,7]
[389662134,1759775442979,-571.7328099,0.00029315,7]
[389662135,1759775442988,-370.68887098,0.0002932,7]
[389662137,1759775442997,-870.27907867,0.00029335,2]
[389662139,1759775443007,-779.83911766,0.00029336,2]
[389662140,1759775443016,-150.0,0.00029338,7]
[389662141,1759775443027,-150.0,0.00029338,7]
[389662142,1759775443036,-150.0,0.00029382,30]
[389662143,1759775443046,-400.0,0.000294,10]
[389662144,1759775443056,-2123.9900042,0.00029434,2]
[389662145,1759775443065,-914.26430286,0.0002946,2]
[389662146,1759775443075,-400.0,0.000295,10]
[389662147,1759775443084,-385.0,0.000295,2]
[389662148,1759775443093,-500.0,0.00029539,7]
[389662149,1759775443103,-710.0,0.0002954,7]
[389662150,1759775443113,-958.24952705,0.00029585,2]
[389662152,1759775443124,-2123.9900042,0.00029589,2]
[389662153,1759775443134,-500.0,0.0002959,2]
[389662154,1759775443144,-150.0,0.0002959,2]
[389662155,1759775443163,-500.0,0.0002959,2]
[389662156,1759775443173,-500.0,0.0002959,2]
[389662157,1759775443183,-150.0,0.0002959,2]
[389662158,1759775443193,-150.0,0.0002959,2]
[389662159,1759775443202,-150.0,0.0002959,2]
[389662160,1759775443211,-150.0,0.0002959,2]
[389662161,1759775443221,-150.0,0.0002959,2]
[389662162,1759775443231,-150.0,0.0002959,2]
[389662163,1759775443241,-150.0,0.0002959,2]
[389662164,1759775443251,-150.0,0.0002959,2]
[389662165,1759775443261,-150.0,0.0002959,2]
[389662166,1759775443271,-222.28850458,0.0002959,2]
[389662167,1759775443280,-150.0,0.0002959,2]
[389662168,1759775443290,-150.0,0.0002959,2]
[389662169,1759775443300,-150.0,0.0002959,2]
[389662170,1759775443309,-150.0,0.0002959,2]
[389662171,1759775443318,-150.0,0.0002959,2]
[389662172,1759775443330,-150.0,0.0002959,2]
[389662173,1759775443339,-150.0,0.0002959,2]
[389662174,1759775443348,-500.0,0.0002959,2]
[389662175,1759775443358,-500.0,0.0002959,2]
[389662176,1759775443368,-500.0,0.0002959,2]
[389662177,1759775443377,-500.0,0.0002959,2]
[389662178,1759775443386,-500.0,0.0002959,2]
[389662179,1759775443395,-150.0,0.0002959,2]
[389662180,1759775443404,-500.0,0.0002959,2]
[389662181,1759775443414,-200.0,0.00029592,2]
[389662182,1759775443424,-400.0,0.000296,10]
[389662183,1759775443434,-43398.02507706,0.00029617,7]
[389662184,1759775443443,-3152.94566546,0.00029617,7]
[389662185,1759775443452,-19405.12596861,0.0002962,7]
[389662186,1759775443462,-3152.94566546,0.00029625,7]
[389662187,1759775443471,-150.0,0.00029628,120]
[389662188,1759775443481,-7356.8732193,0.00029629,7]
[389662189,1759775443490,-710.0,0.00029632,2]
[389662190,1759775443499,-7356.8732193,0.00029637,7]
[389662191,1759775443509,-101262.05851304,0.00029637,7]
[389662192,1759775443518,-1804.69376082,0.0002964,7]
[389662193,1759775443527,-3152.94566546,0.00029643,7]
[389662194,1759775443536,-271.10628107,0.00029667,7]
[389662195,1759775443546,-500.0,0.00029667,7]
[389662196,1759775443557,-500.0,0.00029667,7]
[389662198,1759775443568,-1804.69376082,0.00029667,7]
[389662199,1759775443577,-1000.0,0.00029668,2]
[389662201,1759775443587,-4210.95210846,0.00029671,7]
[389662202,1759775443596,-584.38000121,0.00029671,2]
[389662203,1759775443606,-200.10571627,0.00029682,7]
[389662204,1759775443615,-4210.95210846,0.00029686,7]
[389662205,1759775443624,-1425.0,0.00029689,2]
[389662206,1759775443634,-1804.69376082,0.00029691,7]
[389662207,1759775443645,-239.84119403,0.00029693,2]
[389662208,1759775443654,-359.76179104,0.00029693,2]
[389662209,1759775443664,-19405.12596861,0.00029699,7]
[389662210,1759775443674,-400.0,0.000297,10]
[389662211,1759775443683,-150.5,0.00029701,2]
[389662212,1759775443692,-1804.69376082,0.00029704,7]
[389662213,1759775443702,-7356.8732193,0.00029705,7]
[389662214,1759775443711,-1002.23475125,0.0002971,2]
[389662215,1759775443720,-160.08457302,0.00029711,7]
[389662216,1759775443730,-6714.54913481,0.00029711,2]
[389662217,1759775443739,-4210.95210846,0.00029714,7]
[389662218,1759775443748,-19405.12596861,0.00029721,7]
[389662219,1759775443757,-4705.43942232,0.00029721,2]
[389662220,1759775443766,-160.08457302,0.00029723,7]
[389662221,1759775443776,-5000.0,0.0002973,2]
[389662222,1759775443785,-160.08457302,0.00029733,7]
[389662223,1759775443794,-101262.05851304,0.00029735,7]
[389662224,1759775443804,-4210.95210846,0.00029738,7]
[389662225,1759775443813,-160.08457302,0.00029739,7]
[389662226,1759775443822,-1000.0,0.0002974,2]
[389662227,1759775443831,-8172.8917878,0.00029742,7]
[389662228,1759775443840,-2123.9900042,0.00029745,2]
[389662229,1759775443849,-229.01163612,0.00029745,2]
[389662230,1759775443858,-161.67240369,0.00029745,15]
[389662231,1759775443868,-8006.97634497,0.00029745,2]
[389662232,1759775443877,-354.15152644,0.00029745,2]
[389662233,1759775443887,-101262.05851304,0.00029747,7]
[389662234,1759775443896,-8172.8917878,0.00029752,7]
[389662235,1759775443905,-43398.02507706,0.00029754,7]
[389662236,1759775443915,-1000.0,0.00029758,2]
[389662237,1759775443924,-3502.6679091,0.00029761,7]
[389662238,1759775443933,-19405.12596861,0.00029763,7]
[389662239,1759775443943,-8172.8917878,0.00029763,7]
[389662240,1759775443952,-3502.6679091,0.00029765,7]
[389662241,1759775443962,-3152.94566546,0.0002977,7]
[389662242,1759775443972,-3502.6679091,0.00029771,7]
[389662243,1759775443981,-3502.6679091,0.00029771,7]
[389662244,1759775443990,-7356.8732193,0.00029773,7]
[389662245,1759775443999,-19405.12596861,0.00029791,7]
[389662246,1759775444008,-4210.95210846,0.00029794,7]
[389662247,1759775444017,-3502.6679091,0.000298,7]
[389662248,1759775444027,-500.0,0.000298,7]
[389662249,1759775444036,-500.0,0.000298,7]
[389662250,1759775444045,-339.66342043,0.000298,7]
[389662251,1759775444055,-500.0,0.000298,7]
[389662252,1759775444064,-500.0,0.000298,7]
[389662253,1759775444073,-1000.0,0.000298,7]
[389662254,1759775444083,-1000.0,0.000298,7]
[389662255,1759775444092,-500.0,0.000298,7]
[389662256,1759775444101,-532.89922326,0.000298,7]
[389662257,1759775444110,-500.0,0.000298,7]
[389662258,1759775444120,-500.0,0.000298,7]
[389662259,1759775444129,-1350.0,0.000298,10]
[389662260,1759775444138,-169.1,0.000298,21]
[389662261,1759775444147,-500.0,0.000298,7]
[389662262,1759775444156,-561.30564899,0.000298,7]
[389662263,1759775444165,-283.06371623,0.000298,7]
[389662264,1759775444174,-500.0,0.000298,7]
[389662265,1759775444183,-500.0,0.000298,7]
[389662266,1759775444191,-500.0,0.000298,7]
[389662267,1759775444200,-500.0,0.000298,7]
[389662268,1759775444210,-500.0,0.000298,7]
[389662269,1759775444219,-500.0,0.000298,7]
[389662270,1759775444228,-512.08,0.000298,7]
[389662271,1759775444238,-512.08,0.000298,7]
[389662272,1759775444247,-271.8132242,0.000298,7]
[389662273,1759775444258,-500.0,0.000298,7]
[389662274,1759775444267,-376.72723295,0.000298,7]
[389662275,1759775444276,-200.0,0.000298,2]
[389662276,1759775444285,-101262.05851304,0.00029804,7]
[389662277,1759775444294,-710.0,0.00029805,2]
[389662278,1759775444303,-101262.05851304,0.00029806,7]
[389662279,1759775444312,-1000.0,0.00029807,11]
[389662280,1759775444321,-1000.0,0.00029807,11]
[389662281,1759775444330,-1000.0,0.00029807,11]
[389662282,1759775444339,-1000.0,0.00029807,11]
[389662283,1759775444348,-1000.0,0.00029807,11]
[389662284,1759775444357,-1000.0,0.00029807,11]
[389662285,1759775444367,-1000.0,0.00029807,11]
[389662286,1759775444376,-1000.0,0.00029807,11]
[389662287,1759775444385,-8172.8917878,0.00029807,7]
[389662288,1759775444394,-500.0,0.0002981,7]
[389662289,1759775444403,-500.0,0.0002981,7]
[389662290,1759775444413,-500.0,0.0002981,7]
[389662291,1759775444422,-500.0,0.0002981,7]
[389662292,1759775444431,-500.0,0.0002981,7]
[389662293,1759775444440,-500.0,0.0002981,7]
[389662294,1759775444450,-512.08,0.0002981,7]
[389662295,1759775444459,-1186.5753389,0.00029811,15]
[389662296,1759775444468,-160.08457302,0.00029815,7]
[389662297,1759775444477,-1804.69376082,0.00029816,7]
[389662298,1759775444487,-151.0,0.00029818,7]
[389662299,1759775444497,-43398.02507706,0.00029818,7]
[389662300,1759775444506,-512.97085665,0.0002982,7]
[389662301,1759775444515,-500.0,0.0002982,7]
[389662302,1759775444524,-500.0,0.0002982,7]
[389662303,1759775444534,-500.0,0.0002982,7]
[389662304,1759775444543,-500.0,0.0002982,7]
[389662305,1759775444561,-500.0,0.0002982,7]
[389662306,1759775444575,-500.0,0.0002982,7]
[389662307,1759775444585,-500.0,0.0002982,7]
[389662308,1759775444600,-505.60072778,0.0002982,7]
[389662309,1759775444614,-512.08,0.0002982,7]
[389662310,1759775444627,-500.0,0.0002982,7]
[389662311,1759775444641,-500.0,0.0002982,7]
[389662312,1759775444652,-379.73687285,0.0002982,7]
[389662313,1759775444664,-151.0,0.00029821,30]
[389662314,1759775444675,-151.0,0.00029821,30]
[389662315,1759775444687,-151.0,0.00029821,30]
[389662316,1759775444698,-151.0,0.00029821,30]
[389662317,1759775444708,-151.0,0.00029821,30]
[389662318,1759775444718,-151.0,0.00029821,30]
[389662319,1759775444729,-151.0,0.00029821,30]
[389662320,1759775444739,-151.0,0.00029821,30]
[389662321,1759775444750,-151.0,0.00029821,30]
[389662322,1759775444761,-151.0,0.00029821,30]
[389662323,1759775444771,-151.0,0.00029821,30]
[389662324,1759775444782,-151.0,0.00029821,30]
[389662325,1759775444792,-437.348816,0.00029821,30]
[389662326,1759775444802,-437.348816,0.00029821,30]
[389662327,1759775444813,-151.0,0.00029821,30]
[389662328,1759775444824,-437.348816,0.00029821,30]
[389662329,1759775444835,-437.348816,0.00029821,30]
[389662330,1759775444845,-159.555357,0.00029821,30]
[389662331,1759775444855,-317.175139,0.00029821,30]
[389662332,1759775444865,-317.175139,0.00029821,30]
[389662333,1759775444876,-317.175139,0.00029821,30]
[389662334,1759775444887,-317.175139,0.00029821,30]
[389662335,1759775444899,-151.0,0.00029821,30]
[389662336,1759775444909,-151.0,0.00029821,30]
[389662337,1759775444920,-151.0,0.00029821,30]
[389662338,1759775444931,-151.0,0.00029821,30]
[389662339,1759775444951,-151.0,0.00029821,30]
[389662340,1759775444962,-151.0,0.00029821,30]
[389662341,1759775444972,-698.757097,0.00029821,30]
[389662342,1759775444982,-698.757097,0.00029821,30]
[389662343,1759775444993,-698.757097,0.00029821,30]
[389662344,1759775445002,-698.757097,0.00029821,30]
[389662345,1759775445012,-151.0,0.00029821,30]
[389662346,1759775445022,-151.0,0.00029821,30]
[389662347,1759775445033,-151.0,0.00029821,30]
[389662348,1759775445044,-151.0,0.00029821,30]
[389662349,1759775445055,-151.0,0.00029821,30]
[389662350,1759775445066,-151.0,0.00029821,30]
[389662351,1759775445076,-151.0,0.00029821,30]
[389662352,1759775445087,-151.0,0.00029821,30]
[389662353,1759775445097,-151.0,0.00029821,30]
[389662354,1759775445108,-151.0,0.00029821,30]
[389662355,1759775445120,-151.418636,0.00029821,30]
[389662356,1759775445131,-151.0,0.00029821,30]
[389662357,1759775445143,-151.0,0.00029821,30]
[389662358,1759775445154,-151.0,0.00029821,30]
[389662359,1759775445164,-151.0,0.00029821,30]
[389662360,1759775445176,-151.0,0.00029821,30]
[389662361,1759775445186,-151.0,0.00029821,30]
[389662362,1759775445197,-151.0,0.00029821,30]
[389662363,1759775445208,-151.0,0.00029821,30]
[389662364,1759775445218,-151.0,0.00029821,30]
[389662365,1759775445230,-151.0,0.00029821,30]
[389662366,1759775445240,-151.0,0.00029821,30]
[389662367,1759775445251,-153.350346,0.00029821,30]
[389662368,1759775445261,-151.0,0.00029821,30]
[389662369,1759775445272,-151.0,0.00029821,30]
[389662370,1759775445282,-3152.94566546,0.00029822,7]
[389662371,1759775445292,-8172.8917878,0.00029822,7]
[389662372,1759775445303,-7356.8732193,0.00029825,7]
[389662373,1759775445315,-43398.02507706,0.00029827,7]
[389662374,1759775445326,-150.0,0.00029828,2]
[389662375,1759775445337,-9354.89965441,0.00029828,2]
[389662376,1759775445348,-150.0,0.00029828,2]
[389662377,1759775445359,-150.0,0.00029828,2]
[389662378,1759775445371,-1997.25545426,0.00029828,2]
[389662379,1759775445381,-43398.02507706,0.00029829,7]
[389662380,1759775445391,-151.0,0.0002983,30]
[389662381,1759775445401,-151.0,0.0002983,30]
[389662382,1759775445413,-500.0,0.0002983,7]
[389662383,1759775445423,-151.0,0.0002983,30]
[389662384,1759775445434,-151.0,0.0002983,30]
[389662385,1759775445444,-151.0,0.0002983,30]
[389662386,1759775445455,-180.137647,0.0002983,30]
[389662387,1759775445466,-151.0,0.0002983,30]
[389662388,1759775445476,-151.0,0.0002983,30]
[389662389,1759775445486,-167.407203,0.0002983,30]
[389662390,1759775445496,-151.0,0.0002983,30]
[389662391,1759775445507,-151.0,0.0002983,30]
[389662392,1759775445518,-220.986706,0.0002983,30]
[389662393,1759775445530,-151.0,0.0002983,30]
[389662394,1759775445542,-151.0,0.0002983,30]
[389662395,1759775445554,-292.182105,0.0002983,30]
[389662396,1759775445570,-192.760179,0.0002983,30]
[389662397,1759775445583,-192.760179,0.0002983,30]
[389662398,1759775445593,-192.760179,0.0002983,30]
[389662399,1759775445604,-192.760179,0.0002983,30]
[389662400,1759775445615,-151.0,0.0002983,14]
[389662401,1759775445626,-151.0,0.0002983,30]
[389662402,1759775445638,-151.0,0.0002983,30]
[389662403,1759775445649,-151.0,0.0002983,30]
[389662404,1759775445659,-151.0,0.0002983,30]
[389662405,1759775445671,-698.757097,0.0002983,30]
[389662406,1759775445683,-698.757097,0.0002983,30]
[389662407,1759775445693,-698.757097,0.0002983,30]
[389662408,1759775445703,-698.757097,0.0002983,30]
[389662409,1759775445714,-151.0,0.0002983,30]
[389662410,1759775445727,-151.0,0.0002983,30]
[389662411,1759775445737,-151.0,0.0002983,30]
[389662412,1759775445748,-151.0,0.0002983,30]
[389662413,1759775445760,-151.0,0.0002983,30]
[389662414,1759775445772,-151.0,0.0002983,30]
[389662415,1759775445784,-151.0,0.0002983,30]
[389662416,1759775445796,-296.64352,0.0002983,30]
[389662417,1759775445807,-151.0,0.0002983,30]
[389662419,1759775445818,-151.0,0.0002983,30]